Cogmind - Beta 16.1 @@@ ROGUE MODE // 2026.02.12 @ 02:42:29 Player: +Jones Result: Destroyed by RY-813(R) with Subdweller Beam Cannon Performance ------------- Evolutions (0) 0 Regions Visited (2) 400 Robots Destroyed (40) 200 Value Destroyed (1036) 1036 Prototype IDs (0) 0 Alien Tech Used (0) 0 Bonus (-129) -129 TOTAL SCORE: 1507 Bonus ------- Friendly Fire -129 Cogmind --------- Core Integrity 0/250 Matter 256/300 Energy 88/100 System Corruption 0% Temperature Cool (9) Movement Rolling (125) Ox3 Location -10/Subcaves Parts ------- > --- POWER (1) -------- (None) > --- PROPULSION (2) --- Light Treads Wheel > --- UTILITY (2) ------ Large Storage Unit Seismic Detector > --- WEAPON (2) ------- Riot Gun Subdweller Beam Cannon > --- INVENTORY (15) --- Wheel Subdweller Monowheel Huge Storage Unit Medium Matter Pod (75) Medium Matter Pod (0) Improved Terrain Scanner Makeshift Light Armor Plating Medium Laser Assault Rifle Rocket Launcher Dirty Datajack (20) Datajack Mining Laser Peak State ------------ > --- POWER ------------ (None) > --- PROPULSION ------- Light Treads Wheel > --- UTILITY ---------- Large Storage Unit Makeshift Light Armor Plating > --- WEAPON ----------- Assault Rifle Subdweller Machine Gun > --- INVENTORY -------- Wheel Subdweller Monowheel Huge Storage Unit Medium Matter Pod Medium Matter Pod Improved Terrain Scanner Seismic Detector Subdweller Beam Cannon Rocket Launcher Dirty Datajack Datajack Mining Laser [Rating: 12] Favorites ----------- Power Light Ion Engine Engine Light Ion Engine Propulsion Light Treads Treads Light Treads Wheel Wheel Utility Seismic Detector Device Seismic Detector Storage Large Storage Unit Protection Light Armor Plating Weapon Assault Rifle Energy Gun Particle Gun Energy Cannon Subdweller Beam Cannon Ballistic Gun Assault Rifle Launcher Rocket Launcher Special Weapon Mining Laser Impact Weapon Hammer Build | -11 -10 -10 ------- Run | Yrd Mat Sub Slots Evolved . | . . . Power . | . . . Propulsion . | . . . Utility . | . . . Weapon . | . . . Parts Attached 31 | 7 13 11 Power 4 | 1 3 . Engine 4 | 1 3 . Core . | . . . Reactor . | . . . Propulsion 7 | 2 2 3 Treads 6 | 2 2 2 Leg . | . . . Wheel 1 | . . 1 Hover . | . . . Flight . | . . . Utility 8 | 2 4 2 Device 3 | 1 1 1 Storage 3 | 1 2 . Processor . | . . . Hackware . | . . . Protection 2 | . 1 1 Artifact . | . . . Weapon 12 | 2 4 6 Energy Gun 5 | 2 1 2 Energy Cannon 1 | . . 1 Ballistic Gun 3 | . 1 2 Ballistic Cannon . | . . . Launcher 1 | . 1 . Special Weapon 1 | . 1 . Impact Weapon 1 | . . 1 Slashing Weapon . | . . . Piercing Weapon . | . . . Special Melee Weapon . | . . . Unidentified Prototypes . | . . . Parts Lost 12 | . 3 9 Power 2 | . 1 1 Propulsion 3 | . . 3 Utility 3 | . 1 2 Weapon 4 | . 1 3 Highest Loss Streak 6 | . 1 6 To Critical Strikes . | . . . Average Backups 9 | . 8 12 Power . | . . . Propulsion 2 | . 2 2 Utility 3 | . 2 5 Weapon 2 | . 3 2 Tool/Special . | . . . Unused Backups 10 | . 1 9 Power . | . . . Propulsion 2 | . . 2 Utility 4 | . . 4 Weapon 2 | . 1 1 Tool/Special 2 | . . 2 Average Slot Usage (%) 91 | . 99 80 Engine 8 | . 13 1 Treads 24 | . 28 19 Wheel 2 | . . 7 Device 7 | . 8 6 Storage 14 | . 14 14 Protection 4 | . 5 4 Energy Gun 11 | . 15 5 Energy Cannon 2 | . . 7 Ballistic Gun 7 | . 7 7 Launcher 4 | . 4 3 Peak Build Rating 12 | 7 10 12 Average Rating 8 | 5 8 9 On Entrance 5 | . 7 9 Avg Prop Armor Cover (%) 14 | . . 14 Naked Turns . | . . . Heaviest Build 32 | 14 30 32 Greatest Support 40 | 40 40 40 Greatest Overweight (x) 3 | . . 3 Average Overweight (x) . | . . 1 Largest Inventory Capacity 15 | 8 15 15 Average Capacity 11 | 7 10 15 Most Carried 15 | 1 14 15 Average Carried 9 | . 9 12 Final Capacity 15 | 8 15 15 Final Carried 14 | 1 14 13 Class Distribution -------------------- 74% | Mutant 25% | Scavenger-Mutant Dominant Class ---------------- Mutant | -10/Materials Mutant | -10/Subcaves Resources | -11 -10 -10 ----------- Run | Yrd Mat Sub Matter Collected 1161 | 253 474 434 Remotely . | . . . Salvage Created 1183 | 157 614 412 Parts 90 | 19 51 20 Haulers Intercepted 2 | . 2 . Recyclers Shooed 1 | 1 . . Parts Field Recycled . | . . . Retrieved Matter . | . . . Parts Self-Destructed 8 | . . 8 Prevented . | . . . Parts Restored . | . . . Kills | -11 -10 -10 ------- Run | Yrd Mat Sub Combat Hostiles Destroyed 26 | . 15 11 Guns 12 | . 10 2 Cannons 1 | . . 1 AOE 11 | . 4 7 Classes Destroyed 9 | 2 6 1 Worker 1 | . 1 . Tunneler 8 | 6 2 . Hauler 2 | . 2 . Recycler 1 | 1 . . Watcher 2 | . 2 . Swarmer 3 | . 3 . Grunt 13 | . 10 3 Subdweller 10 | . 2 8 Scientist 1 | . . 1 Best Kill Streak 5 | 3 4 5 Combat Bots Only 5 | . 4 5 Max Kills in Single Turn 2 | 1 1 2 Gunslinging . | . . . Exploded 2 | . 1 2 Melee . | . . . Uniques/NPCs Destroyed . | . . . Combat | -11 -10 -10 -------- Run | Yrd Mat Sub Hostile Shots Fired 113 | . 48 65 Missed 27 | . 7 20 Hits 86 | . 41 45 Projectile 86 | . 41 45 Critical Strikes 1 | . . 1 Damage Taken 1850 | . 558 1292 Core 265 | . 41 224 Absorbed by Shields . | . . . Core Remaining (%) 100 | 100 . . Volleys Fired 124 | 19 53 52 Largest 2 | 2 2 2 Hottest 115 | 90 115 90 Shots Fired 193 | 38 93 62 Gun 163 | 38 80 45 Cannon 8 | . . 8 Launcher 22 | . 13 9 Special . | . . . Kinetic 31 | . 13 18 Thermal 136 | 38 67 31 Explosive 22 | . 13 9 Electromagnetic 4 | . . 4 Robot Hit Streak 19 | 4 11 19 Robot Miss Streak 3 | 3 3 2 Penetration Max . | . . . Secondary Targets . | . . . Shots Hit Robots 133 | 19 61 53 Core Hits 62 | 8 34 20 Critical Kills . | . . . Critical Parts Destroyed 1 | . . 1 Critical Strikes 5 | 2 1 2 Burn 4 | 2 1 1 Smash 1 | . . 1 Melee Attacks 21 | . . 21 Impact 21 | . . 21 Slashing . | . . . Piercing . | . . . Sneak Attacks . | . . . Combat Hostiles . | . . . Follow-up Attacks . | . . . Damage Inflicted 3265 | 225 1334 1706 Guns 1520 | 225 759 536 Cannons 168 | . . 168 Explosions 1250 | . 575 675 Melee 327 | . . 327 Ramming . | . . . Kinetic 185 | . 69 116 Thermal 1406 | 225 690 491 Explosive 1250 | . 575 675 Electromagnetic 97 | . . 97 Impact 327 | . . 327 Slashing . | . . . Piercing . | . . . Highest Corruption . | . . . Average Corruption . | . . . Corruption Purged . | . . . Corruption Blocked . | . . . Overload Shots . | . . . Overflow Damage 64 | . 9 55 Projectiles . | . . . Explosions 37 | . 9 28 Melee 27 | . . 27 Knockbacks 3 | . . 3 Impact 2 | . . 2 Kinetic . | . . . Secondary 1 | . . 1 Self-Inflicted Damage 79 | . 12 67 Shots 3 | . 1 2 Rammed . | . . . Targets Rammed . | . . . Kicked . | . . . Crushed . | . . . Highest Temperature 285 | 150 285 30 Average Temperature 80 | 69 91 9 Received Heat Transfer 378 | . 219 159 Siege Activations . | . . . Martial Activations . | . . . Shielding Activations . | . . . Robots Disrupted . | . . . Combat Hostiles . | . . . Robots Corrupted 1 | . . 1 Combat Hostiles 1 | . . 1 Parts Fried 2 | . . 2 Impact Corruptions 1 | . . 1 Robots Melted 1 | . 1 . Combat Hostiles 1 | . 1 . Parts Melted 4 | . 4 . Heat Transferred 3716 | 755 1888 1073 Parts Sabotaged . | . . . Parts Stolen . | . . . Parts Stripped . | . . . Power Chain Reactions 1 | . . 1 Alert | -11 -10 -10 ------- Run | Yrd Mat Sub Maximum Alert Level . | . . . Low Security (%) 100 | 100 100 . Level 1 . | . . . Level 2 . | . . . Level 3 . | . . . Level 4 . | . . . Level 5 . | . . . High Security . | . . . Max Security . | . . . Peak Influence 190 | 10 190 . Initial . | . . . Average 63 | 1 71 . Influence Increases 656 | 35 541 80 Destroy 0b10 Robot/C 320 | . 260 60 Destroy 0b10 Robot/NC 70 | 35 35 . Destroy Leader 88 | . 68 20 Successful Hack 22 | . 22 . Select Force Hacks 30 | . 30 . Destroy Structure 66 | . 66 . Lose Combat Pursuer 60 | . 60 . Influence Decreases 656 | 35 541 80 Time Decay 626 | 35 511 80 Lost Part 30 | . 30 . Squads Dispatched 4 | . 4 . Investigation 3 | . 3 . Extermination . | . . . Reinforcement 1 | . 1 . Assault . | . . . Garrison . | . . . Intercept . | . . . Searches Triggered . | . . . Construction Impeded . | . . . Haulers Reinforced . | . . . Active Scanning Responses . | . . . Cargo Convoy Interrupts . | . . . Stealth | -11 -10 -10 --------- Run | Yrd Mat Sub Distress Signals 2 | . 2 . Communications Jammed . | . . . Distress Signals . | . . . Times Spotted 35 | . 23 12 Peak Tracking Total 7 | . 7 3 Tactical Retreats 3 | . 3 . Traps | -11 -10 -10 ------- Run | Yrd Mat Sub Traps Triggered 6 | . 3 3 Indirectly . | . . . Trap Hack Attempts . | . . . Triggered . | . . . Disarmed . | . . . Reprogrammed . | . . . Reused . | . . . Traps Extracted . | . . . Installed . | . . . Triggered . | . . . Machines | -11 -10 -10 ---------- Run | Yrd Mat Sub Machines Disabled . | . . . Max in Single Turn . | . . . Machines Repaired . | . . . Machines Dismantled . | . . . Machines Sabotaged . | . . . Overloaded Fab Kills . | . . . Hacking | -11 -10 -10 --------- Run | Yrd Mat Sub Machines Accessed 7 | . 7 . Terminals 5 | . 5 . Fabricators . | . . . Repair Stations . | . . . Recycling Units 2 | . 2 . Scanalyzers . | . . . Garrison Access . | . . . Total Hacks 19 | . 19 . Successful 11 | . 11 . Failed 8 | . 8 . Catastrophic . | . . . Database Lockouts . | . . . Manual 14 | . 14 . Terminals 13 | . 13 . Fabricators . | . . . Repair Stations . | . . . Recycling Units 6 | . 6 . Scanalyzers . | . . . Garrison Access . | . . . Terminal Hacks . | . . . Fabricator Hacks . | . . . Repair Station Hacks . | . . . Recycling Unit Hacks 1 | . 1 . Retrieve Components 1 | . 1 . Scanalyzer . | . . . Garrison Access Hacks . | . . . Unauthorized Hacks 10 | . 10 . Terminals 9 | . 9 . Assimilate 1 | . 1 . Botnet 2 | . 2 . Operators 1 | . 1 . Skim 5 | . 5 . Fabricators . | . . . Repair Stations . | . . . Recycling Units 1 | . 1 . Tunnel 1 | . 1 . Scanalyzers . | . . . Garrison Access . | . . . Data Cores Recovered . | . . . Used . | . . . Hacking Detections 6 | . 6 . Full Trace Events . | . . . Feedback Events . | . . . Feedback Blocked . | . . . Robot Schematics Acquired . | . . . Robots Built . | . . . Authchips . | . . . Time . | . . . Total Robot Build Rating . | . . . Part Schematics Acquired . | . . . Parts Built . | . . . Authchips . | . . . Time . | . . . Total Part Build Rating . | . . . Part Studies Acquired . | . . . Parts Repaired . | . . . Time . | . . . Parts Recycled . | . . . Recycled Matter . | . . . Retrieved Matter . | . . . Retrieved Components 10 | . 10 . Parts Scanalyzed . | . . . Part Schematics Acquired . | . . . Parts Damaged . | . . . Bothacking | -11 -10 -10 ------------ Run | Yrd Mat Sub Used RIF Installer . | . . . Robots Hacked . | . . . Non-combat . | . . . Combat . | . . . Robot Hacks Applied . | . . . Relay Couplers Released . | . . . Fabnet Peak Effective % . | . . . Robots Rewired . | . . . Allies Hacked . | . . . Hacks Repelled . | . . . Allies | -11 -10 -10 -------- Run | Yrd Mat Sub Total Allies 1 | . 1 . Largest Group 1 | . 1 1 Highest-Rated Group 10 | . 10 10 Highest-Rated Ally 10 | . 10 10 Total Orders 1 | . . 1 STAY 1 | . . 1 Ally Attacks . | . . . Total Damage . | . . . Kills . | . . . Allies Corrupted . | . . . Allies Melted 1 | . . 1 Intel | -11 -10 -10 ------- Run | Yrd Mat Sub Active Infowar (turns) 1566 | 9 1069 488 Seismic 1566 | 9 1069 488 Robot Analysis Total . | . . . Derelict Logs Recovered 3 | . . 3 Drone Launches . | . . . Drone Recoveries . | . . . Exploration | -11 -10 -10 ------------- Run | Yrd Mat Sub Turns Passed 2981 | 225 1708 1048 Spaces Moved 1450 | 58 796 596 Core 6 | 6 . . Treads 1033 | 52 796 185 Legs . | . . . Wheels 411 | . . 411 Hover . | . . . Flight . | . . . Fastest Speed 50 | 50 160 110 Average Speed 148 | 148 160 131 Slowest Speed 240 | 160 160 240 Overloaded Moves . | . . . Propulsion Burnouts . | . . . Robots Hopped . | . . . Potential Cave-ins . | . . . Cave-ins Triggered . | . . . Exploration Rate (%) 46 | 4 98 38 Regions Visited 2 Branch Regions 1 Pre-discovered Areas 6 | . 6 . Known Exits Taken . | . . . Unknown Exits Taken 2 | 1 1 . Scrap Searched . | . . . Spaces Dug . | . . . Terrain Destroyed 126 | . 67 59 Melee . | . . . Projectile . | . . . AOE 126 | . 67 59 Terrain Rammed . | . . . Walls Destroyed . | . . . Machines Disabled . | . . . Actions | -11 -10 -10 --------- Run | Yrd Mat Sub Total 2037 | 155 1136 746 Wait 353 | 71 236 46 Move 1448 | 57 795 596 Hop . | . . . Pick Up 29 | 1 21 7 Fast Attach 12 | 7 2 3 Attach 9 | . 3 6 Detach . | . . . Swap 27 | . 16 11 Drop 14 | . 10 4 Fire 124 | 19 53 52 Melee 21 | . . 21 Ram . | . . . Kick . | . . . Crush . | . . . Escape Stasis . | . . . Rewire . | . . . Trap . | . . . Miscellaneous . | . . . Route ------- -11/Scrapyard -10/Materials (discovered 5 exits: [*Mat x3] / [*Min] / [*Sub]) -10/Subcaves (discovered 1 exit: [*Mat]) History --------- Turn | Location | Event 11 | -11/Scrapyard | Discovered new exit (range 14) 226 | -11/Scrapyard | Entered Materials 317 | -10/Materials | Build established: Mutant 776 | -10/Materials | Discovered new exit (range 11) 926 | -10/Materials | Derelicts attacked the area 997 | -10/Materials | Discovered new exit (range 12) 1010 | -10/Materials | Discovered new exit (range 15) 1194 | -10/Materials | Discovered new exit (range 14) 1390 | -10/Materials | Build established: Scavenger-Mutant 1572 | -10/Materials | Learned location of Mines (-9) 1637 | -10/Materials | Learned location of Storage (-7) 1733 | -10/Materials | Learned location of Mines (-10) 1784 | -10/Materials | Learned location of Subcaves (-10) 1792 | -10/Materials | Discovered new exit (range 4) 1815 | -10/Materials | Learned Storage emergency access door positions 1934 | -10/Materials | Entered Subcaves 1934 | -10/Subcaves | Accompanied by 1 ally 1935 | -10/Subcaves | Approached by a straggling Scientist 2027 | -10/Subcaves | Build established: Mutant 2070 | -10/Subcaves | Discovered new exit (range 14) 2309 | -10/Subcaves | Core integrity fell below 50% 2320 | -10/Subcaves | Lost 6 parts (2n2u2w) 2330 | -10/Subcaves | Shifting Twisted Machinery released Sub. Optics 2344 | -10/Subcaves | Learned location of 1 exit from Materials 2422 | -10/Subcaves | Core integrity fell below 20% 2585 | -10/Subcaves | Shifting Twisted Machinery released Riot Gun 2865 | -10/Subcaves | Learned Materials emergency access door positions 2982 | -10/Subcaves | Destroyed by RY-813(R) with Subdweller Beam Cannon Last Messages --------------- 02849_ Acquired 12 matter. 02859_ Acquired derelict log, extracted data. Data stored: Storage entrances (x1). 02865_ Acquired derelict log, extracted data. Data stored: Materials emergency access points. 02876_ Triggered Piercing Trap. 02876_ Spikes shoot up from the floor. 02876_ Critical hit (Impale). 02881_ Acquired 29 matter. 02882_ Acquired 19 matter. 02884_ Acquired Med. Laser. 02904_ Triggered Piercing Trap. 02904_ Spikes shoot up from the floor. 02904_ Critical hit (Impale). 02911_ Triggered Piercing Trap. 02911_ Spikes shoot up from the floor. 02911_ Critical hit (Impale). 02980_ RY-813(R): "SUBMAD!" 02981_ RY-813(R) affixes Scrap Shield Fragment to Scrap Shield. Map ----- +----------------------------------------------------+ | ?????????????????????????????????????????????????? | | ?????????????????????????????????????????????????? | | ?????????????????????????????????????????????????? | | ?????????????????????????????????????????????????? | | ?????????????????????????????????????????????????? | | ?????????????????????????????????????????????????? | | ?????????????????????????????????????????????????? | | ?????????????????????????????????????????????????? | | ?????????????????????????????????????????????????? | | ?????????????????????????????????????????????????? | | ?????????????????????????????????????????????????? | | ?????????????????????????????????????????????????? | | ?????????????????????????????????????????????????? | | ?????????????????????????????????????????????????? | | ???????????????????####??????????????????????????? | | ?#????????????????## ##?????????????????????????? | | # ??###????????#### #?????????????????????????? | | " ### ##?####### ## #?????????????????????????? | | % ### ## #?????????????????????????? | | ## ## #?????????###??????????????? | | ## # ### ### ##??????### ##?????????????? | | ## % ## # ###???## #?????????????? | | ## % ## ## #???# ##????????????? | | # # ##### ##???????????? | | # # & ## ##??????????? | | # R! @ #??????????? | | # # ## # # #??????????? | | # ! # # ##??????????? | | # # # ### # ### ##???????????? | | # ## #### " ###?## # ##??##????????????? | | ##### ##?# #????# ### #????????????????? | | ?# #?# ""##????#"#?# ##????????????????? | | ?# #?### " #???? " ?# #?????????????????? | | ?# ###???# " ##??? "#?# #?????????????????? | | ?# ##????? " ??? "#?## ##????????????????? | | ?# #????? ""#"?""""???# #????????????????? | | ?# # #???? ##??"" ???## #????????????????? | | ?## # #????????????# #????????????????? | | #?# ## ? ###????????????# #????????????????? | | ### ## ?#???????????????# #????????????????? | | ## #? #???????????????# #????????????????? | | ##?? #???????????????# #????????????????? | | ##???##???????????##### ##????????????????? | | #????????###????## ##???????????????? | | ##??????? ???## ##??????????????? | | ##??????# ??## ##?????????????? | | #?????## #?# #?????????????? | | ##????? ?# ###?????????????? | | ##???## ## #####???????????????? | | # #???# ## ####??####??????????? | +----------------------------------------------------+ Best States ------------- Heat Dissipation 25 Energy Generation 10 Energy Capacity 250 Matter Stores 300 Matter Capacity 300 Sight Range 16 Terrain Scan Density 10 Armor Coverage 150 Evasion (%) 40 Recoil Reduction 2 Item Schematics ----------------- None Robot Schematics ------------------ None Fabricated ------------ Nothing Repaired ---------- Nothing Studied --------- None Alien Tech Used ----------------- None Achievements -------------- None Challenges ------------ None Game ------ Seed FlakThrusterJammer Manual? 0 Play Time 00:17:30 Cumulative 389.3 hours Start 2026.02.12 @ 02:27:50 End 2026.02.12 @ 02:42:29 Sessions 1 Manual Loads 0 Difficulty Rogue Special Mode None Game No. 312 Rogue 312 Adventurer 0 Explorer 0 Win Type - Total 2 Types 2/0/0/0/0/0/0/0/0/0 Lore% 63 Gallery% 69 Achievement% 54 Wizard Run 0 Options --------- Layout 1 ASCII 0 Keyboard 0 Movement Mouse Keybinds 0 Fullscreen 1 Font 32/SmallcapsGlow Map View 50x35 Zoom Use 0% Tactical HUD 1 Map Filters NONE Filters NONE Steam 1 RUN: 6f068c72-356a-4a41-936d-26b13280da3a